bitfinex/quotes_ETHUSD_20250810
["timestamp","ask_amount","ask_price","bid_price","bid_amount"]
[1754811332704,1.9772,4208.2,4208.1,1e-08]
[1754811332903,1.9772,4208.2,4208.1,0.43500001]
[1754811333475,4.35351291,4208.2,4208.1,0.43500001]
[1754811333675,4.35351291,4208.2,4208.1,1e-08]
[1754811334276,4.38321682,4208.2,4208.1,1e-08]
[1754811334487,4.35351291,4208.2,4208.1,1e-08]
[1754811334884,1.9772,4208.2,4208.1,1e-08]
[1754811335198,1.9772,4208.2,4208.1,0.43500001]
[1754811335800,1.9772,4208.2,4208.1,2.81136939]
[1754811336111,1.9772,4208.2,4208.1,1e-08]
[1754811336312,4.35351291,4208.2,4208.1,1e-08]
[1754811336517,4.38321682,4208.2,4208.1,1e-08]
[1754811337080,5.33511682,4208.2,4208.1,1e-08]
[1754811337287,5.30541291,4208.2,4208.1,1e-08]
[1754811337487,6.07357793,4208.2,4208.1,1e-08]
[1754811339227,5.12167793,4208.2,4208.1,1e-08]
[1754811340096,6.07357793,4208.2,4208.1,1e-08]
[1754811340703,5.12167793,4208.2,4208.1,1e-08]
[1754811341031,5.15138184,4208.2,4208.1,1e-08]
[1754811341228,5.12167793,4208.2,4208.1,1e-08]
[1754811342147,4.35351291,4208.2,4208.1,1e-08]
[1754811342301,4.84171291,4208.2,4208.1,1e-08]
[1754811342503,5.30541291,4208.2,4208.1,1e-08]
[1754811344705,5.85541291,4208.2,4208.1,1e-08]
[1754811348632,4.90351291,4208.2,4208.1,1e-08]
[1754811348938,5.67498554,4208.2,4208.1,1e-08]
[1754811351222,6.61658554,4208.2,4208.1,1e-08]
[1754811356721,4.35351291,4208.2,4208.1,1e-08]
[1754811358166,4.35351291,4208.2,4208.1,0.43780001]
[1754811358560,4.35351291,4208.2,4208.1,1e-08]
[1754811358723,1.9772,4208.2,4208.1,1e-08]
[1754811358928,1.9772,4208.2,4208.1,0.43780001]
[1754811359160,1.9772,4208.2,4208.1,1.14658311]
[1754811359371,1.9772,4208.2,4208.1,0.82630001]
[1754811359749,1.9772,4208.2,4208.1,0.43780001]
[1754811359949,1.9772,4208.2,4208.1,0.82630001]
[1754811360353,0.1212,4208.2,4208.1,0.82630001]
[1754811360533,0.002,4208.2,4208.1,3.32186939]
[1754811360735,0.002,4208.2,4208.1,3.89169562]
[1754811362243,0.002,4208.2,4208.1,15.19232194]
[1754811362638,1e-08,4208.2,4208.1,15.19232194]
[1754811362836,1e-08,4208.2,4208.1,17.04132194]
[1754811364045,1e-08,4208.2,4208.1,17.59132194]
[1754811364653,1e-08,4208.2,4208.1,19.53402239]
[1754811365944,1e-08,4208.7,4208.6,5.92608705]
[1754811366135,1e-08,4208.7,4208.6,6.24236359]
[1754811366341,1e-08,4208.7,4208.6,9.03586359]
[1754811370768,1e-08,4208.7,4208.6,7.18786359]
[1754811371073,1e-08,4208.7,4208.6,9.03386359]
[1754811373193,1e-08,4208.7,4208.6,7.18786359]
[1754811373374,1e-08,4208.7,4208.6,5.81156359]
[1754811373673,1e-08,4208.7,4208.6,8.09436359]
[1754811374241,1e-08,4208.7,4208.6,7.65656359]
[1754811374741,1e-08,4208.7,4208.6,5.81156359]
[1754811375254,1e-08,4208.7,4208.6,7.65556359]
[1754811375872,1e-08,4208.7,4208.6,8.09336359]
[1754811376964,1e-08,4208.7,4208.6,7.65556359]
[1754811377481,1e-08,4208.7,4208.6,7.65456359]
[1754811377675,1e-08,4208.7,4208.6,5.81156359]
[1754811377881,1e-08,4208.7,4208.6,7.65356359]
[1754811378552,1e-08,4208.7,4208.6,5.81156359]
[1754811378758,1e-08,4208.7,4208.6,7.65356359]
[1754811380005,1e-08,4208.7,4208.6,5.81156359]
[1754811380205,1e-08,4208.7,4208.6,7.65256359]
[1754811380568,1e-08,4208.7,4208.6,5.81156359]
[1754811380773,1e-08,4208.7,4208.6,7.65256359]
[1754811382885,1e-08,4208.7,4208.6,5.81156359]
[1754811383238,0.93860001,4208.7,4208.6,7.65156359]
[1754811383496,0.93860001,4208.7,4208.6,5.49528705]
[1754811383669,0.93860001,4208.7,4208.1,2.37633256]
[1754811383670,0.93860001,4208.7,4208.1,1e-08]
[1754811383872,0.9386,4208.6,4208.2,0.1192]
[1754811384266,0.9386,4208.5,4208.2,0.1192]
[1754811384479,0.9386,4208.4,4208.2,0.1192]
[1754811384771,0.9386,4208.3,4208.2,0.1192]
[1754811385103,0.9386,4208.3,4208.2,2.49551291]
[1754811385301,1.8386,4208.3,4208.2,2.49551291]
[1754811387083,0.9,4208.3,4208.2,5.37631291]
[1754811387276,0.9,4208.3,4208.2,5.49551291]
[1754811388390,1e-08,4208.7,4208.6,2.37608705]
[1754811388980,1e-08,4208.7,4208.6,2.49528705]
[1754811389988,1e-08,4208.7,4208.6,4.33628705]
[1754811390185,0.93860001,4208.7,4208.6,2.49528705]
[1754811390385,0.93860001,4208.7,4208.6,0.1192]
[1754811390586,0.93860001,4208.7,4208.4,2.37619303]
[1754811390587,1.05780001,4208.7,4208.4,2.37619303]
[1754811390913,0.9386,4208.6,4208.5,2.37614351]
[1754811391085,0.11920001,4208.7,4208.1,0.11920001]
[1754811391282,0.9386,4208.6,4208.1,0.11920001]
[1754811391611,0.9386,4208.5,4208.2,2.37631291]
[1754811391911,0.9386,4208.4,4208.3,2.37625505]
[1754811392207,0.9386,4208.4,4208.1,0.11920001]
[1754811392414,0.11920001,4208.7,4208.3,2.37620976]
[1754811392909,0.11920001,4208.7,4208.1,2.49555821]
[1754811392910,0.11920001,4208.7,4208.2,2.3763115]
[1754811393090,0.9386,4208.6,4208.3,2.37625531]
[1754811393413,0.11920001,4208.7,4208.1,0.11920001]
[1754811393414,0.9386,4208.5,4208.1,0.11920001]
[1754811393575,0.4643,4208.4,4208.1,2.49554933]
[1754811393911,0.9386,4208.3,4208.2,2.37631291]
[1754811394112,0.9386,4208.3,4208.1,2.49556119]
[1754811394319,0.9386,4208.2,4208.1,2.49556119]
[1754811394479,0.9386,4208.2,4208.1,0.11920001]
[1754811394881,1.39225061,4208.2,4208.1,1e-08]
[1754811395081,3.43411291,4208.2,4208.1,1e-08]
[1754811395318,3.46381682,4208.2,4208.1,1e-08]
[1754811395494,3.43411291,4208.2,4208.1,1e-08]
[1754811395900,1.0578,4208.2,4208.1,1e-08]
[1754811397018,0.5835,4208.2,4208.1,2.37636939]
[1754811398315,0.5835,4208.2,4208.1,1e-08]
[1754811398517,0.5835,4208.2,4208.1,2.37636939]
[1754811398812,0.5835,4208.2,4208.1,1e-08]
[1754811399180,0.5835,4208.2,4208.1,2.37636939]
[1754811399596,2.3143,4208.5,4208.2,2.37629674]
[1754811399792,1.9592,4208.5,4208.1,1e-08]
[1754811400013,0.9386,4208.4,4208.2,2.37631291]
[1754811400316,0.9386,4208.4,4208.1,1e-08]
[1754811400317,2.37631291,4208.2,4208.1,1e-08]
[1754811400617,2.3765388,4207.8,4207.7,0.001]
[1754811400994,5.1571388,4207.8,4207.7,0.001]
[1754811401199,5.2763388,4207.8,4207.7,0.001]
[1754811401400,6.04161527,4207.8,4207.7,0.001]
[1754811401605,3.66507647,4207.8,4207.7,0.001]
[1754811401800,2.8998,4207.8,4207.7,0.001]
[1754811402399,5.1571388,4207.8,4207.7,0.001]
[1754811404919,5.2522978,4207.8,4207.7,0.001]
[1754811405126,5.8022978,4207.8,4207.7,0.001]
[1754811405313,8.8022978,4207.8,4207.7,0.001]
[1754811405519,9.92017192,4207.8,4207.7,0.001]
[1754811406699,9.92017192,4207.8,4207.7,1e-08]
[1754811407523,9.9230945,4207.8,4207.7,1e-08]
[1754811408610,5.92659528,4207.7,4207.6,1e-08]
[1754811408921,6.83929528,4207.7,4207.6,1e-08]
[1754811409131,8.30694892,4207.7,4207.6,1e-08]
[1754811411024,7.75694892,4207.7,4207.6,1e-08]
[1754811411398,8.30694892,4207.7,4207.6,1e-08]
[1754811412429,18.67543504,4207.7,4207.6,1e-08]
[1754811415028,8.42322634,4207.7,4207.6,1e-08]
[1754811416141,8.42633012,4207.7,4207.6,1e-08]
[1754811417209,8.42322634,4207.7,4207.6,1e-08]
[1754811418024,8.42633012,4207.7,4207.6,1e-08]
[1754811418232,8.42322634,4207.7,4207.6,1e-08]
[1754811418626,8.42633012,4207.7,4207.6,1e-08]
[1754811420255,8.92989882,4207.7,4207.6,1e-08]
[1754811420557,8.92679504,4207.7,4207.6,1e-08]
[1754811420755,17.23844275,4207.7,4207.6,1e-08]
[1754811423654,4.34931398,4207.7,4207.6,1e-08]
[1754811423953,5.83565272,4207.7,4207.6,1e-08]
[1754811424252,7.77277979,4207.7,4207.6,1e-08]
[1754811424631,10.77277979,4207.7,4207.6,1e-08]
[1754811425963,2.92682123,4207.3,4207.2,1e-08]
[1754811426123,16.70044238,4207.3,4207.2,1e-08]
[1754811426329,16.70044238,4207.3,4207.1,0.001]
[1754811426330,5.92687773,4207.2,4207.1,1e-08]
[1754811426627,5.92687773,4207.2,4206.3,0.001]
[1754811426628,0.55,4207.0,4206.3,1e-08]
[1754811426827,14.23455855,4206.4,4206.3,1e-08]
[1754811427129,16.58169306,4206.4,4206.3,1e-08]
[1754811427429,19.45319345,4206.4,4206.3,1e-08]
[1754811427944,19.45562387,4206.4,4206.3,1e-08]
[1754811428147,21.02129409,4206.4,4205.6,1e-08]
[1754811428453,21.02129409,4206.4,4202.6,1e-08]
[1754811428454,2.503,4205.5,4203.1,0.4471]
[1754811428653,2.37754506,4206.1,4203.1,0.4471]
[1754811428654,1.13400287,4205.6,4203.7,0.4471]
[1754811428829,1.858,4205.5,4203.7,0.9423]
[1754811429030,1.858,4205.4,4203.8,0.9423]
[1754811429229,1.44,4206.3,4203.8,0.9423]
[1754811429230,1.86,4205.3,4203.9,1.2784205]
[1754811429430,2.88135439,4206.6,4204.0,0.9423]
[1754811429630,1.86,4206.5,4204.2,2.3785738]
[1754811429855,1.86,4206.5,4204.8,2.37819691]
[1754811429856,2.3777697,4205.7,4204.8,2.37819691]
[1754811430045,3.03325429,4206.7,4204.9,0.9423]
[1754811430046,4.23879161,4205.6,4204.9,0.9423]
[1754811430246,1.861,4205.5,4205.0,0.9423]
[1754811430572,2.37795163,4205.3,4205.1,0.9423]
[1754811430755,2.3776099,4206.0,4204.0,3.0]
[1754811430756,2.37848446,4204.4,4204.0,3.0]
[1754811430966,1.862,4204.3,4204.2,0.4471]
[1754811431132,1.862,4204.3,4204.2,0.9423]
[1754811431335,4.24051723,4204.3,4204.2,0.9423]
[1754811431634,1.862,4204.3,4204.2,0.9423]
[1754811432272,2.37870375,4204.0,4203.6,0.04]
[1754811432467,1.861,4203.9,4203.8,0.4471]
[1754811432639,1.863,4203.9,4203.6,0.04]
[1754811432968,1.863,4203.9,4203.7,0.9423]
[1754811433174,1.863,4203.9,4203.8,0.9423]
[1754811434682,1.863,4203.9,4203.8,0.4471]
[1754811436070,1.863,4203.9,4203.8,0.9423]
[1754811436268,1.863,4203.9,4203.8,0.4471]
[1754811436583,1.863,4203.9,4203.7,0.001]
[1754811436772,1.863,4203.9,4203.7,0.4481]
[1754811437088,1.863,4203.9,4203.7,0.001]
[1754811437089,2.37880013,4203.8,4203.7,0.001]
[1754811438804,3.55,4203.5,4201.8,0.4319]
[1754811438945,2.37942275,4202.7,4201.8,0.4319]
[1754811439145,4.24242275,4202.7,4201.6,0.04]
[1754811439460,4.24242275,4202.7,4199.6,0.04]
[1754811439461,0.37207,4201.6,4199.6,0.04]
[1754811439659,2.38100969,4199.9,4198.8,4.68843722]
[1754811439957,2.855,4201.1,4195.6,0.04]
[1754811439958,10.26714298,4198.9,4195.6,0.04]
[1754811440157,2.3822146,4197.8,4195.8,1.428]
[1754811440471,2.3822146,4197.8,4196.6,0.03]
[1754811440472,1.884,4197.7,4196.6,0.03]
[1754811440683,3.0,4197.6,4196.6,0.03]
[1754811441203,2.38277294,4196.8,4196.6,0.03]
[1754811441503,2.38277294,4196.8,4195.6,0.04]
[1754811441504,1.954,4196.7,4195.6,0.04]
[1754811441700,1.954,4196.7,4193.6,0.14]
[1754811441701,1.953,4197.0,4193.6,0.04]
[1754811441862,2.38248397,4197.3,4193.7,3.872052]
[1754811442043,3.46108175,4197.2,4193.7,0.12341131]
[1754811442245,8.20448591,4193.8,4190.3,0.4439]
[1754811442473,3.0,4196.5,4192.2,2.3853785]
[1754811442474,2.38468138,4193.5,4192.2,2.3853785]
[1754811442643,3.0,4194.5,4192.3,0.8905]
[1754811442844,3.0,4194.3,4191.5,0.4319]
[1754811443163,3.0,4194.3,4191.0,0.715951]
[1754811443164,3.0,4194.1,4191.7,0.8905]
[1754811443348,0.11915,4194.0,4191.8,0.8905]
[1754811443550,0.11915,4194.1,4191.9,0.8905]
[1754811443749,0.11915,4194.1,4191.0,2.857]
[1754811443750,0.17635519,4195.6,4192.0,4.553966]
[1754811444067,8.20448591,4195.4,4192.1,0.8905]
[1754811444267,2.38406738,4194.6,4192.3,2.38532547]
[1754811444480,2.38406738,4194.6,4191.6,2.42568509]
[1754811444481,0.72979595,4195.2,4192.4,0.8905]
[1754811444779,2.38427258,4194.2,4192.5,3.8905]
[1754811444966,0.04,4194.9,4192.7,3.0]
[1754811445172,0.04,4194.9,4192.6,0.8905]
[1754811445375,0.04,4194.9,4194.8,2.38390388]
[1754811445890,0.04,4194.9,4194.8,0.8905]
[1754811446101,0.04441894,4195.9,4194.8,3.8905]
[1754811446303,0.04,4196.9,4196.7,2.38279142]
[1754811446651,0.04,4196.9,4196.8,0.8905]
[1754811446880,0.04,4196.9,4196.8,3.8905]
[1754811447080,0.04,4198.9,4197.8,2.3822002]
[1754811447488,0.04,4198.9,4197.8,6.2727002]
[1754811447686,0.04,4198.9,4198.8,2.38163284]
[1754811448086,0.04,4198.9,4198.8,3.27213284]
[1754811448307,0.04,4198.9,4195.7,0.1]
[1754811448453,0.04,4198.9,4197.9,2.38211757]
[1754811448653,0.04,4198.9,4197.8,0.4319]
[1754811448654,0.04,4198.9,4197.8,2.81405884]
[1754811448885,0.04,4198.9,4197.7,0.1192]
[1754811448886,0.1192,4198.3,4197.7,0.1192]
[1754811449191,0.1192,4198.3,4196.1,2.711]
[1754811449192,2.38255294,4197.2,4196.1,2.38314031]
[1754811449394,0.9293,4198.2,4196.2,2.38305463]
[1754811449552,0.9293,4198.2,4195.9,0.001]
[1754811449553,3.0,4197.6,4195.9,0.001]
[1754811449754,8.20448591,4197.7,4195.9,0.001]
[1754811449755,2.38317226,4196.1,4195.9,0.001]
[1754811450282,3.31247226,4196.1,4195.9,0.001]
[1754811450686,2.38317226,4196.1,4195.9,0.001]
[1754811451055,0.95909027,4196.0,4195.9,0.001]
[1754811451250,0.9293,4196.0,4195.9,0.001]
[1754811451554,2.38317226,4196.1,4195.9,0.001]
[1754811451775,2.38322211,4196.0,4195.9,0.001]
[1754811452095,0.9293,4196.6,4195.9,0.001]
[1754811452388,2.699,4196.8,4195.6,1e-08]
[1754811452389,9.13378591,4196.0,4195.6,1e-08]
[1754811452593,9.13378591,4196.0,4194.6,0.04]
[1754811452594,3.55,4195.3,4194.6,0.001]
[1754811452778,3.0,4194.8,4191.2,2.38590167]
[1754811452980,2.38452917,4193.7,4191.8,0.4319]
[1754811453183,2.38475663,4193.3,4190.4,0.4319]
[1754811453391,0.95910945,4193.3,4190.8,0.4319]
[1754811453696,0.9293,4193.2,4190.9,2.38612231]
[1754811453878,0.9293,4193.2,4190.8,0.4319]
[1754811453879,0.02981087,4193.1,4190.8,0.4319]
[1754811454297,0.9293,4193.2,4190.9,0.4586]
[1754811454476,2.38498413,4192.9,4190.6,0.8905]
[1754811454698,0.02981301,4192.8,4190.6,0.8905]
[1754811454909,3.0,4192.6,4188.5,0.716331]
[1754811455088,2.38736972,4188.8,4186.4,0.1]
[1754811455293,3.6223,4188.7,4186.7,2.38847058]
[1754811455619,3.6223,4188.7,4186.4,0.1]
[1754811455828,2.38794565,4187.7,4186.4,0.1]
[1754811456022,8.09094565,4187.7,4186.4,0.1]
[1754811456176,2.38828783,4187.1,4187.0,0.489]
[1754811456705,0.9293,4187.1,4187.0,0.489]
[1754811457079,0.9293,4187.1,4186.4,0.1]
[1754811457080,2.38863012,4186.5,4186.4,0.1]
[1754811457307,3.6273,4186.5,4186.4,0.1]
[1754811457505,3.1741,4186.5,4186.4,0.1]
[1754811457703,2.86,4187.4,4186.4,0.1]
[1754811457704,0.4532,4187.1,4186.4,0.1]
[1754811457905,0.02985431,4187.0,4186.8,2.38840203]
[1754811458108,0.02984789,4187.9,4187.6,2.38800267]
[1754811458411,3.1562,4188.5,4188.1,2.38770881]
[1754811458412,2.703,4188.5,4188.1,2.38770881]
[1754811458625,2.703,4188.5,4186.5,0.4586]
[1754811458805,0.4761,4189.2,4187.1,0.4319]
[1754811458980,2.84037126,4189.1,4186.4,0.1]
[1754811459182,2.717,4189.5,4186.5,0.4586]
[1754811459524,0.0298372,4189.4,4186.7,5.38851601]
[1754811459723,0.0298372,4189.4,4188.2,2.3876562]
[1754811460020,0.04,4189.9,4187.1,3.0]
[1754811460220,0.04,4189.9,4187.4,3.0]
[1754811460385,0.04,4189.9,4187.7,0.55]
[1754811460585,0.4532,4192.3,4188.4,9.98063483]
[1754811460786,2.38528587,4192.4,4190.7,2.38619755]
[1754811460980,2.38528587,4192.4,4188.5,21.693387]
[1754811460981,2.38605878,4191.1,4188.5,3.7535]
[1754811461223,2.38587556,4191.4,4188.6,6.174596]
[1754811461521,2.86215041,4191.1,4188.6,0.8905]
[1754811461693,2.38617924,4190.8,4188.6,0.8905]
[1754811462018,0.55,4190.4,4187.6,0.4586]
[1754811462225,0.55,4190.0,4187.6,0.4586]
[1754811462382,3.0,4190.4,4186.8,0.4586]
[1754811462383,0.55,4189.6,4186.8,0.4586]
[1754811462583,2.38732376,4188.8,4186.8,0.4586]
[1754811462783,0.9293,4189.5,4186.9,0.4319]
[1754811462982,0.9293,4190.1,4187.6,0.04]
[1754811463328,0.02982937,4190.5,4187.7,0.8905]
[1754811463829,0.4761,4191.5,4188.5,0.55]
[1754811463983,2.874,4191.6,4188.3,0.55]
[1754811463984,2.874,4191.6,4188.8,3.55]
[1754811464184,0.04,4191.9,4189.0,3.0]
[1754811464394,0.04,4191.9,4189.8,3.55]
[1754811464606,0.04,4191.9,4190.8,0.55]
[1754811464818,0.04,4191.9,4189.9,3.0]
[1754811465083,0.04,4191.9,4190.5,0.55]
[1754811465390,0.04,4191.9,4190.7,3.0]
[1754811465582,0.04,4191.9,4191.5,2.38577564]
[1754811465786,0.04,4191.9,4191.6,0.889]
[1754811466001,0.04,4191.9,4191.8,2.38561]
[1754811466225,0.04,4191.9,4191.7,0.4586]
[1754811466424,0.04,4191.9,4191.8,3.27461]
[1754811466735,0.04,4191.9,4191.8,2.38561]
[1754811466901,0.04,4191.9,4191.8,2.84421]
[1754811467101,0.04,4191.9,4191.8,0.889]
[1754811467301,0.04,4191.9,4191.8,0.4586]
[1754811467533,0.04,4191.9,4191.1,3.0]
[1754811467739,0.04,4191.9,4191.2,2.38595151]
[1754811468036,0.04,4191.9,4191.0,0.4837]
[1754811468336,2.38561,4191.8,4190.0,0.4837]
[1754811468526,0.036,4191.9,4191.0,2.38604306]
[1754811468725,2.42156039,4191.9,4190.9,2.38611924]
[1754811468925,0.036,4191.9,4191.0,2.38603873]
[1754811469128,0.036,4191.9,4190.8,0.001]
[1754811469438,0.1192,4191.7,4191.1,2.5051528]
[1754811469742,0.1192,4191.7,4191.1,0.1192]
[1754811470071,2.38595151,4191.2,4191.1,0.1192]
[1754811470215,0.1192,4191.2,4190.8,0.001]
[1754811470541,0.1192,4191.4,4190.8,0.1202]
[1754811471122,2.38591903,4191.3,4190.8,0.1202]
[1754811471406,0.8939,4191.3,4190.8,0.001]
[1754811471719,0.1192,4191.0,4190.8,0.001]
[1754811473557,0.8939,4190.9,4190.8,0.001]
[1754811474139,0.1192,4191.0,4190.8,0.001]
[1754811474359,2.84052231,4190.9,4190.8,0.001]
[1754811474659,3.28002231,4190.9,4190.8,0.001]
[1754811475441,2.38612231,4190.9,4190.8,0.001]
[1754811475645,2.95972231,4190.9,4190.8,0.001]
[1754811475842,3.39922231,4190.9,4190.8,0.001]
[1754811476858,2.50532231,4190.9,4190.8,0.001]
[1754811477236,3.42904883,4190.9,4190.8,0.001]
[1754811477441,3.39922231,4190.9,4190.8,0.001]
[1754811477838,2.50532231,4190.9,4190.8,0.001]
[1754811478760,0.1192,4190.9,4190.8,0.001]
[1754811478946,2.82081656,4192.3,4190.8,0.001]
[1754811479147,2.38612231,4190.9,4190.8,0.001]
[1754811479872,3.0,4192.2,4190.8,0.001]
[1754811480086,3.28002231,4190.9,4190.8,0.001]
[1754811480271,0.716525,4191.5,4190.8,0.001]
[1754811480447,0.8939,4191.8,4190.8,0.001]
[1754811480640,2.38576977,4191.6,4190.8,0.001]
[1754811480857,0.4544,4191.8,4190.8,0.001]
[1754811481140,0.036,4191.9,4190.8,0.001]
[1754811481141,0.02982083,4191.7,4190.8,0.001]
[1754811481341,2.38580222,4191.5,4190.8,0.001]
[1754811481570,0.06581941,4191.9,4190.8,0.001]
[1754811481778,0.036,4191.9,4190.8,0.001]
[1754811482557,2.38561,4191.8,4190.8,2.38713313]
[1754811482857,0.02982083,4191.7,4190.8,0.001]
[1754811483183,0.8939,4191.7,4190.8,0.001]
[1754811483495,0.036,4191.9,4190.8,0.001]
[1754811483979,0.036,4191.9,4190.9,0.9141]
[1754811484280,0.036,4191.9,4190.8,0.001]
[1754811484576,2.38582302,4191.5,4190.8,0.001]
[1754811484775,2.38572594,4191.6,4190.8,0.001]
[1754811484979,2.38561,4191.8,4190.8,0.001]
[1754811485164,0.4395,4191.6,4190.8,0.001]
[1754811485363,2.38590237,4191.3,4190.8,0.001]
[1754811485565,2.38612231,4190.9,4190.8,0.001]
[1754811485766,0.92372439,4191.2,4190.8,0.001]
[1754811485951,3.28002231,4190.9,4190.8,0.001]
[1754811486149,6.28002231,4190.9,4190.8,1e-08]
[1754811486479,3.0,4190.8,4188.6,0.04]
[1754811486680,0.62366685,4189.8,4188.6,2.42738249]
[1754811486880,2.3872211,4189.0,4188.6,0.04]
[1754811487059,0.8939,4188.9,4188.6,0.04]
[1754811487247,0.4544,4189.5,4188.6,0.04]
[1754811487768,0.4395,4189.6,4188.8,2.38726727]
[1754811487967,3.25141337,4189.8,4188.6,0.04]
[1754811488287,2.38680736,4189.7,4188.6,0.04]
[1754811488597,0.62366685,4190.3,4188.6,0.04]
[1754811488598,0.8939,4190.5,4188.6,3.04]
[1754811488907,0.8939,4190.5,4189.9,0.1192]
[1754811488908,0.1192,4190.5,4189.9,0.1192]
[1754811489205,2.38737555,4188.7,4188.6,0.04]
[1754811489352,3.28127555,4188.7,4188.6,0.04]
[1754811489550,2.38748955,4188.5,4188.4,0.1192]
[1754811489748,1.3377808,4188.5,4186.4,0.1]
[1754811490049,0.62538614,4188.2,4186.4,0.1]
[1754811490363,0.1192,4187.6,4187.0,0.1192]
[1754811490564,0.1192,4187.6,4187.5,2.3880597]
[1754811490792,0.1192,4188.4,4187.5,0.1192]
[1754811491006,0.1192,4188.4,4188.0,2.38777079]
[1754811491151,0.1192,4188.4,4187.9,0.1192]
[1754811491347,0.62538614,4189.4,4187.5,0.73444099]
[1754811491348,0.4544,4189.4,4187.5,0.73444099]
[1754811491706,0.1192,4189.5,4188.3,0.1192]
[1754811491907,0.1192,4189.5,4188.0,2.38777459]
[1754811492222,2.38675827,4189.8,4188.9,2.3872208]
[1754811492433,0.1192,4189.6,4189.1,2.38709958]
[1754811492589,2.781,4189.9,4188.9,2.38726157]
[1754811492914,0.1192,4189.3,4189.2,2.38709061]
[1754811493113,0.1192,4189.3,4188.8,0.1192]
[1754811493311,0.1192,4188.9,4188.2,0.1192]
[1754811493529,0.4544,4188.8,4186.8,0.4837]
[1754811493822,0.1192,4188.6,4188.0,0.1192]
[1754811494122,0.1192,4188.8,4188.7,2.38737555]
[1754811494619,2.781,4189.9,4189.8,2.38674877]
[1754811494793,0.04,4189.9,4189.8,2.38674877]
[1754811495395,0.04,4189.9,4189.8,2.81714877]
[1754811495600,1e-08,4189.9,4189.8,3.30084877]
[1754811495811,0.038,4191.9,4190.2,2.38652092]
[1754811496034,0.038,4191.9,4190.3,1.15275209]
[1754811496217,0.1192,4191.6,4191.0,0.1192]
[1754811496422,2.8630928,4191.9,4191.0,2.38603082]
[1754811496641,2.8630928,4191.9,4190.3,0.23865209]
[1754811496642,0.4775,4191.9,4190.3,0.23865209]
[1754811496820,0.4775,4191.9,4190.0,0.4304]
[1754811497017,0.4775,4191.9,4191.0,2.3860225]
[1754811497345,0.4775,4191.9,4190.0,0.4304]
[1754811497539,0.4847,4191.8,4189.7,3.0]
[1754811497739,0.46222083,4191.7,4190.5,2.3863388]
[1754811497949,2.38591718,4191.3,4190.5,2.38634615]
[1754811498243,0.23859172,4191.2,4189.5,0.4304]
[1754811498445,0.02982439,4191.2,4188.9,0.4304]
[1754811498644,3.01156538,4190.8,4188.0,0.4304]
[1754811498948,2.38721179,4189.0,4187.9,2.38783044]
[1754811499111,2.706,4189.7,4188.4,2.38751878]
[1754811499310,2.38737555,4188.7,4187.6,0.04]
[1754811499609,2.62611311,4188.7,4187.6,0.04]
[1754811499953,2.62611311,4188.7,4187.1,0.001]
[1754811499954,2.38823079,4187.2,4187.1,0.001]
[1754811500820,2.70243042,4188.5,4187.1,2.38927186]
[1754811501057,2.70243042,4188.5,4187.1,0.001]
[1754811501058,2.7,4188.5,4187.1,0.001]
[1754811501215,2.38765037,4188.3,4187.1,0.23994549]
[1754811501412,2.7,4188.5,4188.1,0.001]
[1754811501940,2.38766057,4188.2,4188.1,0.001]
[1754811502321,0.9171,4188.4,4188.1,0.001]
[1754811502645,2.7,4188.5,4188.1,0.001]
[1754811503021,0.9171,4188.4,4188.1,0.001]
[1754811503237,0.79411,4188.4,4188.1,0.001]
[1754811503487,2.7,4188.5,4188.1,0.001]
[1754811503664,2.38766057,4188.2,4188.1,0.001]
[1754811504179,3.30476057,4188.2,4188.1,0.001]
[1754811504588,0.9171,4188.2,4188.1,0.001]
[1754811504787,2.678,4189.0,4188.1,0.001]
[1754811504987,0.31104,4188.9,4188.1,0.001]
[1754811505488,2.38731856,4188.8,4188.1,0.001]
[1754811505653,0.02984219,4188.7,4188.1,0.001]
[1754811505849,0.31104,4188.9,4188.1,0.001]
[1754811506156,0.02984148,4188.8,4188.1,0.001]
[1754811506359,0.1192,4188.2,4188.1,0.001]
[1754811507210,3.42396057,4188.2,4188.1,0.001]
[1754811508170,2.50686057,4188.2,4188.1,0.001]
[1754811508372,3.30476057,4188.2,4188.1,0.001]
[1754811508572,3.42396057,4188.2,4188.1,0.001]
[1754811508774,2.50686057,4188.2,4188.1,0.001]
[1754811508976,4.03495839,4188.2,4188.1,0.001]
[1754811509285,3.08801264,4188.2,4188.1,0.001]
[1754811509486,3.08801264,4188.2,4188.1,1e-08]
[1754811509487,3.30476057,4188.2,4188.1,1e-08]
[1754811509662,0.9171,4188.2,4184.2,0.12435424]
[1754811509863,2.38819168,4187.3,4185.9,2.38896295]
[1754811510184,2.657,4187.2,4186.3,2.38872281]
[1754811510505,2.657,4187.2,4184.7,9.43063483]
[1754811510506,2.657,4187.5,4185.1,0.55]
[1754811510799,0.49825395,4188.7,4185.1,0.55]
[1754811511027,0.30188815,4188.8,4184.7,9.43063483]
[1754811511028,2.38783161,4187.9,4185.5,0.55]
[1754811511236,0.4324,4187.8,4187.2,0.001]
[1754811511532,0.9171,4187.8,4187.2,0.001]
[1754811512031,1.18528429,4188.5,4187.2,0.001]
[1754811512220,1.2151279,4188.5,4187.8,2.38788653]
[1754811512402,1.18528429,4188.5,4187.2,0.001]
[1754811512588,0.38372843,4188.4,4187.2,0.001]
[1754811513195,0.38372843,4188.4,4187.3,2.38817376]
[1754811513395,0.9171,4188.5,4188.1,2.38771591]
[1754811513631,0.9171,4188.5,4187.2,0.001]
[1754811513830,0.9171,4188.5,4188.3,2.3875955]